[Event "Marienbad Open GM 2020"]
[Site "Marianske Lazne"]
[Date "2020.01.18"]
[Round "1.1"]
[White "Dev, Shah"]
[Black "Bai, Adelard"]
[Result "1/2-1/2"]
[ECO "D16"]
[WhiteElo "2320"]
[BlackElo "2430"]
[Annotator "ChessBase"]
[PlyCount "43"]
[EventDate "2020.01.18"]
[EventType "tourn"]
[EventCountry "CZE"]
[SourceTitle "playchess.com"]
[Source "ChessBase"]
[SourceQuality "1"]
[TimeControl "40/5400+30:1800+30"]

1. d4 d5 2. c4 c6 3. Nc3 Nf6 4. Nf3 dxc4 5. a4 e6 6. e3 c5 7. Bxc4 cxd4 8. exd4 Nc6 9. O-O Be7 10. Qe2 O-O 11. Rd1 Nb4 12. Bg5 {[%emt 0:01:45]} h6 {[%emt 0:05:33]} 13. Bxf6 Bxf6 {[%emt 0:00:10]} 14. Ne4 {[%emt 0:00:14]} b6 {[%emt 0:00:51]} 15. Ne5 {[%emt 0:00:07]} Bh4 {[%emt 0:00:09]} 16. Ra3 {[%emt 0:00:07]} Bb7 {[%emt 0:05:58]} 17. Rh3 {[%emt 0:03:45]} Rc8 {[%emt 0:08:25]} 18. Qg4 {[%emt 0:12:27]} Bg5 {[%emt 0:07:42]} 19. Bxe6 {[%emt 0:19:30]} fxe6 {[%emt 0:00:30]} 20. Qxe6+ {[%emt 0:00:30]} Kh7 {[%emt 0:00:27]} 21. Qg6+ {[%emt 0:00:00]} Kg8 {[%emt 0:00:22]} 22. Qe6+ {[%emt 0:00:10]} 1/2-1/2

[Event "Marienbad Open GM 2020"]
[Site "Marianske Lazne"]
[Date "2020.01.22"]
[Round "6.3"]
[White "Dev, Shah"]
[Black "Kovalev, Andrei"]
[Result "0-1"]
[ECO "A21"]
[WhiteElo "2320"]
[BlackElo "2489"]
[Annotator "ChessBase"]
[PlyCount "81"]
[EventDate "2020.01.18"]
[EventType "tourn"]
[EventCountry "CZE"]
[SourceTitle "playchess.com"]
[Source "ChessBase"]
[SourceQuality "1"]
[TimeControl "40/5400+30:1800+30"]

1. d4 {[%emt 0:02:38]} d6 {[%emt 0:00:00]} 2. c4 {[%emt 0:00:45]} e5 {[%emt 0:00:11]} 3. Nc3 {[%emt 0:00:21]} exd4 {[%emt 0:01:34]} 4. Qxd4 {[%emt 0:00:12]} Nf6 {[%emt 0:00:13]} 5. e4 {[%emt 0:02:22]} g6 {[%emt 0:03:11]} 6. Nf3 {[%emt 0:06:57]} Bg7 {[%emt 0:01:14]} 7. Qd2 {[%emt 0:04:36]} O-O {[%emt 0:03:35]} 8. Bd3 {[%emt 0:01:23]} Nc6 {[%emt 0:04:52]} 9. O-O {[%emt 0:06:20]} Bg4 {[%emt 0:01:00]} 10. Ne1 {[%emt 0:00:20]} Re8 {[%emt 0:05:26]} 11. Nc2 {[%emt 0:06:48]} Ne5 {[%emt 0:07:18]} 12. f3 {[%emt 0:13:24]} Be6 {[%emt 0:03:01]} 13. b3 {[%emt 0:10:56]} c6 {[%emt 0:05:56]} 14. Ba3 {[%emt 0:14:49]} d5 {[%emt 0:06:04]} 15. cxd5 {[%emt 0:02:00]} cxd5 {[%emt 0:01:18]} 16. Rad1 {[%emt 0:01:09]} Qb6+ {[%emt 0:07:47]} 17. Kh1 {[%emt 0:05:03]} Nxd3 {[%emt 0:06:00]} 18. Qxd3 {[%emt 0:00:34]} dxe4 {[%emt 0:00:59]} 19. fxe4 {[%emt 0:03:45]} Ng4 {[%emt 0:09:05]} 20. Nd4 {[%emt 0:01:15]} Rad8 {[%emt 0:06:56]} 21. Nce2 {[%emt 0:01:11]} Qc7 {[%emt 0:02:35]} 22. g3 {[%emt 0:00:22]} Qa5 {[%emt 0:00:10]} 23. Bc1 {[%emt 0:05:13]} Qxa2 {[%emt 0:07:36]} 24. Rd2 {[%emt 0:01:24]} Qa5 {[%emt 0:01:24]} 25. Qb5 {[%emt 0:00:43]} Qxb5 {[%emt 0:01:15]} 26. Nxb5 {[%emt 0:00:02]} Rxd2 {[%emt 0:01:43]} 27. Bxd2 {[%emt 0:00:28]} Bxb3 {[%emt 0:00:09]} 28. Rf4 {[%emt 0:01:03]} Rxe4 {[%emt 0:02:38]} 29. Rxe4 {[%emt 0:00:37]} Nf2+ {[%emt 0:00:04]} 30. Kg2 {[%emt 0:00:10]} Nxe4 {[%emt 0:00:04]} 31. Be3 {[%emt 0:00:23]} Bc4 {[%emt 0:02:34]} 32. Nbd4 {[%emt 0:00:09]} a5 {[%emt 0:00:45]} 33. Kf3 {[%emt 0:00:14]} f5 {[%emt 0:01:12]} 34. g4 {[%emt 0:00:07]} Bxe2+ {[%emt 0:01:58]} 35. Nxe2 {[%emt 0:00:17]} a4 {[%emt 0:00:25]} 36. Bc1 {[%emt 0:00:10]} b5 {[%emt 0:00:19]} 37. gxf5 {[%emt 0:00:09]} gxf5 {[%emt 0:00:00]} 38. Ba3 {[%emt 0:00:02]} Nd2+ {[%emt 0:00:19]} 39. Kf4 {[%emt 0:00:07]} Nc4 {[%emt 0:00:02]} 40. Bb4 {[%emt 0:00:03]} a3 {[%emt 0:00:14]} 41. Nc1 {[%emt 0:30:11]} 0-1

[Event "Marienbad Open GM 2020"]
[Site "Marianske Lazne"]
[Date "2020.01.24"]
[Round "8.1"]
[White "Bai, Adelard"]
[Black "Makarian, Rudik"]
[Result "0-1"]
[ECO "E11"]
[WhiteElo "2430"]
[BlackElo "2403"]
[Annotator "NA"]
[PlyCount "82"]
[EventDate "2020.01.18"]
[EventType "tourn"]
[EventCountry "CZE"]
[SourceTitle "playchess.com"]
[Source "ChessBase"]
[SourceQuality "1"]
[TimeControl "40/5400+30:1800+30"]

1. d4 {[%emt 0:00:00]} Nf6 {[%emt 0:00:00]} 2. c4 {[%emt 0:00:00]} e6 {[%emt 0:00:00]} 3. Nf3 {[%emt 0:00:00]} d5 {[%emt 0:00:00]} 4. g3 {[%emt 0:00:03]} Bb4+ {[%emt 0:00:00]} 5. Bd2 {[%emt 0:00:08]} Be7 {[%emt 0:00:00]} 6. Bg2 {[%emt 0:00:54]} O-O {[%emt 0:00:02]} 7. O-O {[%emt 0:00:14]} Nbd7 {[%emt 0:00:24]} 8. Qc2 {[%emt 0:00:27]} c6 {[%emt 0:00:07]} 9. Rd1 {[%emt 0:02:25]} a5 {[%emt 0:00:05]} 10. b3 {[%emt 0:03:57]} b5 {[%emt 0:07:19]} 11. Ne5 {[%emt 0:11:03]} Nxe5 {[%emt 0:14:20]} 12. dxe5 {[%emt 0:00:08]} Nd7 {[%emt 0:00:02]} 13. Bc3 {[%emt 0:05:58]} Ba6 {[%emt 0:02:52]} 14. Nd2 {[%emt 0:31:31]} Qb8 {[%emt 0:00:03]} 15. cxd5 {[%emt 0:02:17]} cxd5 {[%emt 0:00:13]} 16. e4 {[%emt 0:03:00]} Rc8 {[%emt 0:15:36]} 17. Qb2 {[%emt 0:04:21]} Nc5 {[%emt 0:12:00]} 18. exd5 {[%emt 0:10:35]} Nd3 {[%emt 0:02:36]} 19. Qb1 {[%emt 0:00:52]} Nxf2 {[%emt 0:00:55]} 20. Ne4 {[%emt 0:11:58]} Nxd1 {[%emt 0:07:19]} 21. Qxd1 {[%emt 0:00:07]} Bb7 {[%emt 0:08:03]} 22. d6 {[%emt 0:02:48]} Bxe4 {[%emt 0:00:05]} 23. Bxe4 {[%emt 0:00:11]} Rxc3 {[%emt 0:00:36]} 24. dxe7 {[%emt 0:02:54]} Qa7+ {[%emt 0:00:42]} 25. Kh1 {[%emt 0:00:33]} Re8 {[%emt 0:00:08]} 26. Qh5 {[%emt 0:01:19]} g6 {[%emt 0:00:05]} 27. Qh6 {[%emt 0:00:57]} Qe3 {[%emt 0:01:32]} 28. Qh4 {[%emt 0:00:17]} Rc1+ {[%emt 0:00:46]} 29. Rxc1 {[%emt 0:00:06]} Qxc1+ {[%emt 0:00:04]} 30. Kg2 {[%emt 0:00:04]} Qc7 {[%emt 0:00:05]} 31. Qf4 {[%emt 0:00:22]} Qxe7 {[%emt 0:00:11]} 32. h4 {[%emt 0:00:06]} Kg7 {[%emt 0:02:11]} 33. h5 {[%emt 0:00:07]} h6 {[%emt 0:02:12]} 34. hxg6 {[%emt 0:00:17]} fxg6 {[%emt 0:00:03]} 35. Bd3 {[%emt 0:00:54]} Qf7 {[%emt 0:01:31]} 36. Qe3 {[%emt 0:00:21]} b4 {[%emt 0:00:12]} 37. Qe4 {[%emt 0:03:50]} Rd8 {[%emt 0:00:13]} 38. Kg1 {[%emt 0:00:40]} Rd7 {[%emt 0:00:07]} 39. Qe3 {[%emt 0:01:25]} Qe7 {[%emt 0:01:14]} 40. Bb5 {[%emt 0:00:36]} Rd5 {[%emt 0:00:11]} 41. Bc4 {[%emt 0:30:13]} Qc5 {[%emt 0:30:07]} 0-1

[Event "Marienbad Open GM 2020"]
[Site "Marianske Lazne"]
[Date "2020.01.24"]
[Round "8.3"]
[White "Quesada Perez, Luis Ernesto"]
[Black "Baenziger, Fabian"]
[Result "1-0"]
[ECO "A20"]
[WhiteElo "2491"]
[BlackElo "2412"]
[Annotator "ChessBase"]
[PlyCount "65"]
[EventDate "2020.01.18"]
[EventType "tourn"]
[EventCountry "CZE"]
[SourceTitle "playchess.com"]
[Source "ChessBase"]
[SourceQuality "1"]
[TimeControl "40/5400+30:1800+30"]

1. c4 {[%emt 0:04:28]} e5 {[%emt 0:00:00]} 2. g3 {[%emt 0:01:23]} Nf6 {[%emt 0:00:15]} 3. Bg2 {[%emt 0:00:23]} c6 {[%emt 0:00:34]} 4. d4 {[%emt 0:00:11]} exd4 {[%emt 0:00:29]} 5. Qxd4 {[%emt 0:00:10]} Na6 {[%emt 0:00:43]} 6. Nf3 {[%emt 0:00:36]} Bc5 {[%emt 0:00:23]} 7. Qe5+ {[%emt 0:06:00]} Be7 {[%emt 0:00:32]} 8. O-O {[%emt 0:00:17]} O-O {[%emt 0:00:07]} 9. Nc3 {[%emt 0:00:53]} Re8 {[%emt 0:00:53]} 10. Rd1 {[%emt 0:04:13]} Bb4 {[%emt 0:01:48]} 11. Qd4 {[%emt 0:00:43]} Nc5 {[%emt 0:01:10]} 12. Bg5 {[%emt 0:02:09]} Ne6 {[%emt 0:02:26]} 13. Bxf6 {[%emt 0:00:26]} Nxd4 {[%emt 0:00:16]} 14. Bxd8 {[%emt 0:00:06]} Nxf3+ {[%emt 0:04:05]} 15. Bxf3 {[%emt 0:00:14]} Rxd8 {[%emt 0:14:07]} 16. Ne4 {[%emt 0:05:36]} d5 {[%emt 0:22:38]} 17. a3 {[%emt 0:05:18]} Ba5 {[%emt 0:13:03]} 18. cxd5 {[%emt 0:00:06]} cxd5 {[%emt 0:00:42]} 19. Nc5 {[%emt 0:02:04]} Bb6 {[%emt 0:00:08]} 20. Na4 {[%emt 0:03:19]} Be6 {[%emt 0:00:41]} 21. Nxb6 {[%emt 0:00:08]} axb6 {[%emt 0:00:05]} 22. Rac1 {[%emt 0:03:47]} Rd7 {[%emt 0:05:22]} 23. Rd4 {[%emt 0:00:33]} Kf8 {[%emt 0:00:44]} 24. Rb4 {[%emt 0:00:45]} Rd6 {[%emt 0:01:19]} 25. Kf1 {[%emt 0:00:50]} Rad8 {[%emt 0:01:05]} 26. Ke1 {[%emt 0:11:08]} Ke7 {[%emt 0:06:30]} 27. Rb5 {[%emt 0:01:54]} R8d7 {[%emt 0:03:01]} 28. Rc8 {[%emt 0:02:16]} Kf6 {[%emt 0:02:46]} 29. Kd2 {[%emt 0:01:07]} Bf5 {[%emt 0:01:43]} 30. Rc3 {[%emt 0:01:29]} Be6 {[%emt 0:02:48]} 31. Rcb3 {[%emt 0:00:51]} d4 {[%emt 0:00:12]} 32. R3b4 {[%emt 0:00:17]} d3 {[%emt 0:00:45]} 33. e4 {[%emt 0:00:11]} 1-0